bitfinex/quotes_BTCUSD_20250822
["timestamp","ask_amount","ask_price","bid_price","bid_amount"]
[1755872489176,9.46830535,115160.0,115150.0,1e-08]
[1755872489383,4.98361278,115160.0,115150.0,1e-08]
[1755872489595,9.98361278,115160.0,115150.0,1e-08]
[1755872490006,9.95861278,115160.0,115150.0,1e-08]
[1755872490217,9.98361278,115160.0,115150.0,1e-08]
[1755872490420,4.4064357,115160.0,115150.0,1e-08]
[1755872490629,4.3814357,115160.0,115150.0,1e-08]
[1755872490840,0.2200657,115160.0,115150.0,1e-08]
[1755872491880,0.2230657,115160.0,115150.0,1e-08]
[1755872492508,0.2200657,115160.0,115150.0,1e-08]
[1755872495230,0.01012242,115170.0,115150.0,0.00247001]
[1755872495441,0.01012242,115170.0,115160.0,0.08688475]
[1755872495651,0.18231262,115240.0,115170.0,0.5]
[1755872495858,0.18226053,115220.0,115180.0,0.09122577]
[1755872496071,0.1822454,115230.0,115180.0,0.08905526]
[1755872496281,0.18226025,115220.0,115180.0,0.08688475]
[1755872496493,0.17358121,115220.0,115180.0,0.08688475]
[1755872496718,0.17356711,115230.0,115180.0,0.26920753]
[1755872496932,0.17358411,115220.0,115180.0,0.08688475]
[1755872497141,0.18226058,115220.0,115180.0,0.08688475]
[1755872497602,0.0446982,115220.0,115180.0,0.27354844]
[1755872497821,0.18231262,115240.0,115190.0,0.17362561]
[1755872498083,0.18226102,115220.0,115190.0,0.08688475]
[1755872498291,0.18226102,115220.0,115170.0,0.20894464]
[1755872498292,0.22677085,115220.0,115170.0,0.20894464]
[1755872498503,0.04450983,115220.0,115180.0,0.08905526]
[1755872498723,0.18227077,115250.0,115200.0,0.17361103]
[1755872498935,0.17672202,115260.0,115210.0,0.0043399]
[1755872499151,0.21729356,115250.0,115210.0,0.0890547]
[1755872499399,0.17355907,115240.0,115210.0,0.09122465]
[1755872499616,0.17673706,115250.0,115220.0,0.08688475]
[1755872499827,0.17352202,115260.0,115230.0,0.00433914]
[1755872500041,0.17353608,115250.0,115230.0,0.00216957]
[1755872500255,0.17353608,115250.0,115230.0,0.00231421]
[1755872500480,0.17359502,115270.0,115230.0,0.08919896]
[1755872500716,0.21641023,115270.0,115230.0,0.08702939]
[1755872500937,0.17354244,115250.0,115230.0,0.08702939]
[1755872501175,0.29059206,115240.0,115230.0,0.00014464]
[1755872501836,0.30417807,115240.0,115230.0,0.00014464]
[1755872502062,0.18713686,115240.0,115230.0,0.00014464]
[1755872502506,0.01358601,115240.0,115230.0,0.00014464]
[1755872502734,0.01358601,115240.0,115230.0,0.08702939]
[1755872502960,0.01,115250.0,115230.0,0.26431367]
[1755872503182,0.01,115250.0,115240.0,0.08905413]
[1755872503848,0.00095604,115250.0,115240.0,0.54960498]
[1755872504071,0.0002,115290.0,115250.0,0.17352389]
[1755872504292,0.0002,115290.0,115260.0,0.15364475]
[1755872504513,0.0002,115290.0,115260.0,0.32716502]
[1755872504728,0.0002,115290.0,115260.0,0.33584105]
[1755872504945,0.0002,115290.0,115260.0,0.15364475]
[1755872505394,0.0002,115290.0,115260.0,0.6141252]
[1755872505611,0.0002,115290.0,115260.0,0.44060475]
[1755872505907,0.17349099,115280.0,115260.0,0.44060475]
[1755872506133,0.0002,115290.0,115260.0,0.44060475]
[1755872506357,0.17367604,115290.0,115260.0,0.44060475]
[1755872506575,0.17367604,115290.0,115260.0,0.44360475]
[1755872507014,0.17350568,115270.0,115260.0,0.35672]
[1755872507235,0.17350568,115270.0,115260.0,0.003]
[1755872507686,0.18220694,115260.0,115230.0,0.00014464]
[1755872507897,0.17355085,115240.0,115230.0,0.00014464]
[1755872508120,0.21653923,115250.0,115230.0,0.00014464]
[1755872508345,0.17353091,115260.0,115230.0,0.00231421]
[1755872508564,0.18218096,115270.0,115230.0,0.08919896]
[1755872508774,0.18219751,115260.0,115230.0,0.08702939]
[1755872509221,0.1921659,115280.0,115260.0,0.002]
[1755872509455,0.01,115280.0,115260.0,0.002]
[1755872509738,0.17350568,115270.0,115260.0,0.002]
[1755872509983,0.17352753,115260.0,115240.0,0.08688475]
[1755872510231,0.1821771,115280.0,115250.0,0.00433838]
[1755872510488,0.18219676,115260.0,115230.0,0.28802464]
[1755872510757,0.17350573,115270.0,115250.0,0.08688475]
[1755872511059,0.18219676,115260.0,115240.0,0.08688475]
[1755872511281,0.17355085,115240.0,115230.0,0.00014464]
[1755872511530,0.04307626,115250.0,115230.0,0.00014464]
[1755872511775,0.17355085,115240.0,115230.0,0.00014464]
[1755872512500,0.04307626,115250.0,115230.0,0.00014464]
[1755872512708,0.21661223,115250.0,115230.0,0.00014464]
[1755872513591,0.04307626,115250.0,115230.0,0.09002939]
[1755872513796,0.04307626,115250.0,115240.0,0.26477436]
[1755872514004,0.04307626,115250.0,115240.0,0.2604356]
[1755872514636,0.04307626,115250.0,115240.0,0.5473156]
[1755872514869,0.04307626,115250.0,115240.0,0.8387406]
[1755872515292,0.04307626,115250.0,115240.0,0.5473156]
[1755872515510,0.04307626,115250.0,115240.0,0.37376475]
[1755872516617,0.04307626,115250.0,115240.0,0.37776475]
[1755872517034,0.04307626,115250.0,115240.0,0.5513156]
[1755872517254,0.04307626,115250.0,115240.0,0.37376475]
[1755872517714,0.21661205,115250.0,115240.0,0.29088]
[1755872517934,0.04307626,115250.0,115240.0,0.29088]
[1755872518147,0.21661205,115250.0,115240.0,0.28688]
[1755872518378,0.21661205,115250.0,115230.0,0.00014464]
[1755872518379,0.17355085,115240.0,115230.0,0.00014464]
[1755872519047,0.21983205,115250.0,115230.0,0.00014464]
[1755872519195,0.21661205,115250.0,115230.0,0.00014464]
[1755872519405,0.17355085,115240.0,115230.0,0.00014464]
[1755872519569,0.17677085,115240.0,115230.0,0.00014464]
[1755872519776,0.21661205,115250.0,115230.0,0.00014464]
[1755872520088,0.83310764,115240.0,115230.0,0.00014464]
[1755872520294,0.21996253,115240.0,115230.0,0.00014464]
[1755872521031,0.83310764,115240.0,115230.0,0.00014464]
[1755872521453,0.17359604,115210.0,115200.0,0.0005]
[1755872521721,0.83125098,115210.0,115200.0,0.0006436]
[1755872521956,0.17365633,115170.0,115160.0,0.27532]
[1755872523117,0.24513056,115160.0,115150.0,1e-08]
[1755872523321,0.24527514,115160.0,115150.0,1e-08]
[1755872523756,0.17370158,115140.0,115120.0,0.28728]
[1755872524008,0.17371666,115130.0,115120.0,0.28728]
[1755872524234,0.83740381,115140.0,115120.0,0.28728]
[1755872524235,0.05055712,115140.0,115120.0,0.28728]
[1755872524454,0.23785593,115140.0,115120.0,0.28728]
[1755872524676,0.78686177,115130.0,115120.0,0.0004]
[1755872524901,0.79008177,115130.0,115120.0,0.0004]
[1755872525121,0.79008177,115130.0,115120.0,0.00030122]
[1755872525122,0.83760752,115130.0,115120.0,0.00030122]
[1755872525371,0.22066085,115160.0,115150.0,0.17368649]
[1755872525372,0.02198944,115160.0,115150.0,0.17368649]
[1755872525600,0.02198944,115160.0,115150.0,0.46370649]
[1755872525813,0.02198944,115160.0,115150.0,0.00306]
[1755872526027,0.02198944,115160.0,115150.0,0.00740216]
[1755872526253,0.02198944,115160.0,115140.0,0.17369617]
[1755872526254,0.03567409,115150.0,115140.0,0.17369617]
[1755872526744,0.03567409,115150.0,115140.0,0.26058633]
[1755872527428,0.03567409,115150.0,115140.0,0.08688475]
[1755872527869,0.03567409,115150.0,115140.0,0.26167215]
[1755872528085,0.03567409,115150.0,115140.0,0.09188475]
[1755872528554,0.03567409,115150.0,115140.0,0.26058633]
[1755872528986,0.03567409,115150.0,115140.0,0.26458633]
[1755872529243,0.03567409,115150.0,115140.0,0.26465633]
[1755872529683,0.03567409,115150.0,115140.0,0.26458633]
[1755872530366,0.03567409,115150.0,115140.0,0.26058633]
[1755872530579,0.03567409,115150.0,115140.0,0.26118633]
[1755872530788,0.03567409,115150.0,115140.0,0.26365633]
[1755872531001,0.03567409,115150.0,115140.0,0.26358633]
[1755872531469,0.03567409,115150.0,115140.0,0.26058633]
[1755872531990,0.03567409,115150.0,115140.0,0.26558633]
[1755872532640,0.03567409,115150.0,115140.0,0.09188475]
[1755872532862,0.03567409,115150.0,115140.0,0.26558633]
[1755872533078,0.03567409,115150.0,115140.0,0.09188475]
[1755872533299,0.03567409,115150.0,115140.0,0.005]
[1755872533300,0.03889409,115150.0,115140.0,0.005]
[1755872533524,0.21258058,115150.0,115140.0,0.005]
[1755872533737,0.03889409,115150.0,115120.0,0.28730122]
[1755872533957,0.04926912,115150.0,115140.0,0.007]
[1755872534181,0.83972419,115150.0,115140.0,0.007]
[1755872534407,0.88378172,115150.0,115140.0,0.007]
[1755872534628,0.27294699,115150.0,115120.0,0.00030122]
[1755872534852,0.22617591,115150.0,115120.0,0.08827198]
[1755872535067,0.00322,115140.0,115120.0,0.08718597]
[1755872535275,0.23164024,115150.0,115120.0,0.08827254]
[1755872535276,0.22617592,115150.0,115120.0,0.08827254]
[1755872535498,0.1726,115140.0,115130.0,0.08688475]
[1755872535735,0.1726,115140.0,115130.0,0.2616877]
[1755872535955,0.1726,115140.0,115130.0,0.08688475]
[1755872536630,0.1726,115140.0,115120.0,0.00030122]
[1755872536879,0.17582,115140.0,115120.0,0.28734122]
[1755872537100,0.17693666,115130.0,115120.0,0.00030122]
[1755872537290,0.90916667,115130.0,115120.0,0.00030122]
[1755872537529,0.73545001,115130.0,115120.0,0.00030122]
[1755872537746,0.24758619,115130.0,115120.0,0.00030122]
[1755872538193,0.29511194,115130.0,115120.0,0.00030122]
[1755872538423,0.29511194,115130.0,115120.0,0.00013435]
[1755872538643,4.4731931,115130.0,115120.0,0.00013435]
[1755872538863,0.78780158,115110.0,115100.0,0.0005]
[1755872539078,0.83608195,115110.0,115100.0,0.0005]
[1755872539301,0.20876916,115100.0,115090.0,0.00128]
[1755872539530,0.03500722,115100.0,115090.0,0.00128]
[1755872539754,0.21191916,115100.0,115090.0,0.00128]
[1755872539968,0.87463168,115100.0,115090.0,0.00128]
[1755872540185,4.42057695,115100.0,115090.0,0.00128]
[1755872540403,5.03463168,115100.0,115090.0,0.00176242]
[1755872540861,0.26057695,115100.0,115090.0,0.00176242]
[1755872541084,0.87463168,115100.0,115090.0,0.00176242]
[1755872541310,0.88823424,115100.0,115090.0,0.00176242]
[1755872541533,0.27417951,115100.0,115090.0,0.00176242]
[1755872541756,0.10041757,115100.0,115090.0,0.00176242]
[1755872541984,0.04860978,115100.0,115090.0,0.00176242]
[1755872542202,0.22823675,115100.0,115090.0,0.00176242]
[1755872542416,0.91213636,115100.0,115090.0,0.00176242]
[1755872542637,5.07213636,115100.0,115090.0,0.00176242]
[1755872542859,5.04823424,115100.0,115090.0,0.00176242]
[1755872543079,0.17381911,115070.0,115050.0,0.28809]
[1755872543297,0.17968832,115060.0,115050.0,0.00101822]
[1755872543516,0.17697235,115060.0,115050.0,0.00101822]
[1755872543742,0.8378531,115070.0,115050.0,0.00101822]
[1755872543967,0.18742794,115060.0,115050.0,0.00101822]
[1755872544189,0.01360559,115060.0,115050.0,0.00101822]
[1755872544704,0.01360559,115060.0,115050.0,0.26174043]
[1755872544910,0.00271526,115090.0,115050.0,0.26191043]
[1755872545129,0.01360344,115080.0,115060.0,0.00108939]
[1755872545334,0.01360344,115080.0,115070.0,0.17380724]
[1755872545550,0.1738131,115120.0,115080.0,0.16379195]
[1755872545784,0.00586479,115110.0,115080.0,0.08797283]
[1755872546001,0.18560052,115100.0,115050.0,0.18358489]
[1755872546209,0.17379227,115080.0,115050.0,0.00101822]
[1755872546414,0.00016687,115070.0,115060.0,0.08688475]
[1755872546626,0.00016687,115070.0,115060.0,0.08988475]
[1755872546850,0.00016687,115070.0,115060.0,0.26479669]
[1755872547064,0.00016687,115070.0,115060.0,0.2637071]
[1755872547286,0.00016687,115070.0,115060.0,0.08688475]
[1755872547917,0.00016687,115070.0,115060.0,0.2607071]
[1755872548130,0.00016687,115070.0,115060.0,0.2607671]
[1755872549409,0.00016687,115070.0,115060.0,0.2637671]
[1755872549638,0.00016687,115070.0,115060.0,0.5510071]
[1755872549854,0.00016687,115070.0,115060.0,0.2637071]
[1755872550029,0.00016687,115070.0,115060.0,0.5509471]
[1755872550240,0.00016687,115070.0,115060.0,0.5479471]
[1755872550456,0.00016687,115070.0,115060.0,0.37412475]
[1755872551307,0.00016687,115070.0,115060.0,0.5479471]
[1755872551773,0.00016687,115070.0,115060.0,0.37412475]
[1755872552032,0.00016687,115070.0,115060.0,0.08988475]
[1755872552448,0.00016687,115070.0,115060.0,0.08688475]
[1755872552665,0.00016687,115070.0,115060.0,0.001]
[1755872552666,0.00331687,115070.0,115060.0,0.001]
[1755872552890,0.17712411,115070.0,115060.0,0.001]
[1755872553110,0.17382235,115060.0,115050.0,0.00101822]
[1755872553335,0.91437184,115060.0,115050.0,0.00101822]
[1755872553558,0.29760114,115060.0,115050.0,0.00101822]
[1755872553764,0.17384843,115050.0,115030.0,0.0004]
[1755872554004,0.17389792,115010.0,115000.0,0.0009]
[1755872554220,0.61677188,115010.0,115000.0,0.0009]
[1755872554442,0.05942738,115040.0,115000.0,0.0009]
[1755872554668,0.0534512,115040.0,115000.0,0.2627893]
[1755872554913,0.17701779,115030.0,115000.0,0.37502475]
[1755872555143,0.00315,115030.0,115000.0,0.54893402]
[1755872555360,0.03500722,115020.0,115000.0,0.37502475]
[1755872555827,0.17389792,115010.0,115000.0,0.28814]
[1755872556044,0.00271715,115010.0,115000.0,0.0009]
[1755872556259,0.03500722,115020.0,115000.0,0.0009]
[1755872556478,0.17389792,115010.0,115000.0,0.0009]
[1755872556700,0.19852513,115010.0,115000.0,0.0009]
[1755872556939,4.97257986,115010.0,115000.0,0.0009]
[1755872557163,5.03611286,115010.0,115000.0,0.0009]
[1755872557418,0.17397069,114970.0,114950.0,0.0005]
[1755872557657,0.02199149,114970.0,114950.0,0.08738475]
[1755872557900,0.02199149,114970.0,114960.0,0.00109451]
[1755872558129,0.02199149,114970.0,114960.0,0.08822926]
[1755872558341,0.02199149,114970.0,114960.0,0.08797926]
[1755872558797,0.02199149,114970.0,114960.0,0.26204262]
[1755872558798,0.0221358,114970.0,114960.0,0.26204262]
[1755872559028,0.0221358,114970.0,114960.0,0.2609483]
[1755872559467,0.00168242,115020.0,114980.0,0.18263452]
[1755872559715,0.00182748,115020.0,115000.0,0.17391275]
[1755872559946,0.00182748,115020.0,115010.0,0.2618748]
[1755872560154,0.00182748,115020.0,115010.0,0.26078267]
[1755872560375,0.00182748,115020.0,115010.0,0.29312587]
[1755872560599,0.00182748,115020.0,115010.0,0.26105267]
[1755872560811,0.00182748,115020.0,115010.0,0.22621232]
[1755872561276,0.00182748,115020.0,115010.0,0.0523144]
[1755872561490,0.00182748,115020.0,115010.0,0.3397144]
[1755872561707,0.00182748,115020.0,115010.0,0.0520444]
[1755872562127,0.00182748,115020.0,115010.0,0.51646232]
[1755872562348,0.01182748,115020.0,115010.0,0.51646232]
[1755872562580,0.01182748,115020.0,115010.0,1.39438705]
[1755872562581,0.00650748,115020.0,115010.0,1.39438705]
[1755872562794,0.00650748,115020.0,115010.0,1.44438705]
[1755872563012,0.00650748,115020.0,115010.0,0.54146232]
[1755872563244,0.00650748,115020.0,115010.0,0.0550444]
[1755872563496,0.00650748,115020.0,115010.0,0.23003427]
[1755872563693,0.00650748,115020.0,115010.0,0.22894232]
[1755872563938,0.00650748,115020.0,115010.0,0.23194232]
[1755872564588,0.00650748,115020.0,115010.0,0.0580444]
[1755872565061,0.00650748,115020.0,115010.0,0.3454044]
[1755872565508,0.18625719,115020.0,115010.0,0.006]
[1755872565732,0.00965748,115020.0,115010.0,0.00709195]
[1755872565950,0.00650748,115020.0,115010.0,0.09280475]
[1755872566167,0.00650748,115020.0,115010.0,0.00592]
[1755872566168,0.00965748,115020.0,115010.0,0.00592]
[1755872566389,0.00650748,115020.0,115000.0,0.35474]
[1755872566607,0.00650748,115020.0,115010.0,0.0879767]
[1755872566832,0.00650748,115020.0,115010.0,0.0919767]
[1755872567049,0.00650748,115020.0,115010.0,0.09088475]
[1755872567507,0.18349079,115020.0,115000.0,0.35474]
[1755872567728,0.17699792,115010.0,115000.0,0.06738]
[1755872569298,0.0031,115010.0,115000.0,0.06738]
[1755872569558,0.0031,115010.0,115000.0,0.06847242]
[1755872569819,0.17699792,115010.0,115000.0,0.06847242]
[1755872570115,0.26388267,115010.0,115000.0,0.00159242]
[1755872570383,0.26388267,115010.0,115000.0,0.0005]
[1755872570666,0.0031,115010.0,115000.0,0.0005]
[1755872570916,0.18039109,115020.0,115000.0,0.0005]
[1755872571178,0.17699792,115010.0,115000.0,0.0005]
[1755872571684,0.17699792,115010.0,114960.0,0.28744]
[1755872571685,0.18263737,114990.0,114960.0,0.28744]
[1755872571686,0.18569281,115010.0,114960.0,0.29613867]
[1755872571967,0.18569281,115010.0,114970.0,0.00109347]
[1755872572238,0.01520162,115020.0,114970.0,0.18414504]
[1755872572483,0.00650748,115020.0,114990.0,0.79667718]
[1755872572761,0.00650748,115020.0,115010.0,0.17389792]
[1755872573036,0.00650748,115020.0,115000.0,0.54973714]
[1755872573312,0.00650748,115020.0,115000.0,0.37432475]
[1755872573535,0.00960748,115020.0,115000.0,0.37432475]
[1755872573754,0.00650748,115020.0,115000.0,0.37432475]
[1755872574886,0.00650748,115020.0,115000.0,0.37532475]
[1755872575120,0.18349175,115020.0,115000.0,0.08788475]
[1755872575385,0.17699792,115010.0,115000.0,0.0015]
[1755872575609,0.0031,115010.0,115000.0,0.0015]
[1755872575847,0.17971507,115010.0,115000.0,0.0015]
[1755872576085,0.17699792,115010.0,115000.0,0.0015]
[1755872576310,0.26388267,115010.0,115000.0,0.0015]
[1755872577457,0.17397355,114960.0,114950.0,0.3549]
[1755872577678,0.17667652,114970.0,114950.0,0.28802]
[1755872577912,0.17667708,114970.0,114950.0,0.28802]
[1755872578773,0.17667708,114970.0,114950.0,0.00054]
[1755872578982,0.17977708,114970.0,114950.0,0.00101778]
[1755872579220,0.17705898,114970.0,114950.0,0.00101778]
[1755872579427,0.17979188,114960.0,114950.0,0.00101778]
[1755872579635,0.17707355,114960.0,114950.0,0.00101778]
[1755872580712,0.2639583,114960.0,114950.0,0.00101778]
[1755872580934,0.08688475,114960.0,114950.0,0.00201778]
[1755872581155,0.17707355,114960.0,114950.0,0.00201778]
[1755872581593,0.2639583,114960.0,114950.0,0.00201778]
[1755872581847,4.4239583,114960.0,114950.0,0.00201778]
[1755872582065,9.7114783,114960.0,114950.0,0.00101778]
[1755872582281,0.17403411,114920.0,114910.0,0.0004]
[1755872582493,0.17403411,114920.0,114910.0,0.0008772]
[1755872582716,0.17713411,114920.0,114910.0,0.0008772]
[1755872583252,0.17403411,114920.0,114910.0,0.0007772]
[1755872583454,0.17713411,114920.0,114910.0,0.0007772]
[1755872583873,0.26401886,114920.0,114910.0,0.0007772]
[1755872584082,0.17403411,114920.0,114910.0,0.0007772]
[1755872584506,0.17985339,114920.0,114910.0,0.0007772]
[1755872584717,0.1318597,114920.0,114910.0,0.0037772]
[1755872584940,0.00271928,114920.0,114910.0,0.0037772]
[1755872585149,0.17713411,114920.0,114910.0,0.0037772]
[1755872585357,0.93091233,114920.0,114910.0,0.0007772]
[1755872585572,0.17404925,114910.0,114900.0,0.05054]
[1755872585783,4.490954,114910.0,114900.0,0.03894778]
[1755872585927,4.490954,114910.0,114900.0,1e-08]
[1755872585928,5.11974098,114910.0,114900.0,1e-08]
[1755872586527,0.618554,114910.0,114900.0,1e-08]
[1755872587616,1.24782836,114910.0,114900.0,1e-08]
[1755872587789,0.260934,114910.0,114900.0,1e-08]
[1755872588014,0.17404925,114910.0,114900.0,1e-08]
[1755872588217,0.17986876,114910.0,114900.0,1e-08]
[1755872588427,0.264034,114910.0,114900.0,1e-08]
[1755872588654,0.35190365,114910.0,114900.0,1e-08]
[1755872588871,0.79123646,114880.0,114870.0,0.0004]
[1755872589080,5.39272121,114880.0,114870.0,1e-08]
[1755872589289,4.77867945,114880.0,114870.0,1e-08]
[1755872589496,0.61867945,114880.0,114870.0,1e-08]
[1755872589689,5.48009711,114880.0,114870.0,1e-08]
[1755872589918,9.77867945,114880.0,114870.0,1e-08]
[1755872590121,0.54865945,114880.0,114870.0,1e-08]
[1755872590322,0.55224219,114880.0,114870.0,1e-08]
[1755872590540,9.71224219,114880.0,114870.0,1e-08]
[1755872590763,4.42456219,114880.0,114870.0,1e-08]
[1755872590986,4.70914219,114880.0,114870.0,1e-08]
[1755872591207,0.55224219,114880.0,114870.0,1e-08]
[1755872591422,0.00048274,114880.0,114870.0,1e-08]
[1755872591644,0.01511111,114880.0,114870.0,1e-08]
[1755872591865,0.18920581,114880.0,114870.0,1e-08]
[1755872592290,0.01511111,114880.0,114870.0,1e-08]
[1755872592522,0.27781078,114880.0,114870.0,1e-08]
[1755872592737,0.26146219,114880.0,114870.0,1e-08]
[1755872592959,0.00048274,114880.0,114870.0,1e-08]
[1755872593178,0.17457744,114880.0,114870.0,1e-08]
[1755872593649,0.17729766,114880.0,114870.0,0.00100001]
[1755872593873,0.00320296,114880.0,114870.0,0.00100001]
[1755872594095,0.00048274,114880.0,114870.0,0.00225001]
[1755872594553,0.00048274,114880.0,114870.0,0.08913476]
[1755872594780,0.00048274,114880.0,114870.0,0.08796476]
[1755872595886,0.17403531,114940.0,114880.0,0.18279208]
[1755872596117,0.17405573,114960.0,114900.0,0.18276601]
[1755872596385,0.09830175,114960.0,114910.0,0.08798086]
[1755872596615,0.17399019,114950.0,114910.0,0.08798086]
[1755872596793,0.17399019,114950.0,114910.0,0.08688475]
[1755872597049,0.18267344,114960.0,114920.0,0.00109602]
[1755872597318,0.18569179,114980.0,114930.0,0.08688475]
[1755872597531,0.18271049,114990.0,114940.0,0.00109489]
[1755872597752,0.18535996,114980.0,114950.0,0.08688475]
[1755872597974,0.25329163,114980.0,114950.0,0.08688475]
[1755872598423,0.24459412,114980.0,114950.0,0.08688475]
[1755872598696,0.55893728,115000.0,114960.0,0.17506674]
[1755872598697,0.00700748,115000.0,114960.0,0.17506674]
[1755872598930,0.00700748,115000.0,114980.0,0.17394308]
[1755872599151,0.00700748,115000.0,114990.0,0.76190599]
[1755872599368,0.00700748,115000.0,114990.0,0.08688475]
[1755872599589,0.00700748,115000.0,114990.0,0.37460475]
[1755872599807,0.00650748,115000.0,114990.0,0.37460475]
[1755872600265,0.00699081,115000.0,114990.0,0.37460475]
[1755872601123,0.00699081,115000.0,114990.0,0.37464475]
[1755872601343,0.00699081,115000.0,114990.0,0.08692475]
[1755872601777,0.00699081,115000.0,114990.0,4e-05]
[1755872602282,0.00699081,115000.0,114990.0,0.00604]
[1755872602498,0.2709086,115000.0,114990.0,0.00604]
[1755872602725,0.35777825,115000.0,114990.0,0.01304]
[1755872602937,0.88805036,115000.0,114990.0,0.00604]
[1755872603367,0.88805036,115000.0,114990.0,0.01004]
[1755872603592,0.2709086,115000.0,114990.0,0.01004]
[1755872603806,0.2677886,115000.0,114990.0,0.00404]
[1755872604023,0.00699081,115000.0,114990.0,0.00404]
[1755872604460,0.00699081,115000.0,114990.0,0.38052475]
[1755872604685,0.01361328,115010.0,115000.0,0.17391304]
[1755872604930,4e-05,115030.0,115010.0,0.67389743]
[1755872605146,4e-05,115030.0,115020.0,0.58797642]
[1755872605369,4e-05,115030.0,115020.0,0.08688475]
[1755872606018,4e-05,115030.0,115020.0,0.08588475]
[1755872606276,4.565e-05,115040.0,115020.0,0.29955166]
[1755872606480,4.565e-05,115040.0,115030.0,0.54936363]
[1755872606721,0.0005,115050.0,115030.0,0.37340475]
[1755872606919,0.0005,115050.0,115040.0,0.28752]
[1755872607128,0.0005,115050.0,115040.0,0.37440475]
[1755872607339,5.656e-05,115060.0,115040.0,0.08688475]
[1755872607550,5.656e-05,115060.0,115030.0,0.28752]
[1755872607551,0.18528771,115060.0,115030.0,0.28752]
[1755872607756,0.07064953,115050.0,115030.0,0.37440475]
[1755872607978,5.656e-05,115060.0,115040.0,0.08688475]
[1755872608191,0.00020156,115060.0,115040.0,0.08688475]
[1755872608398,0.17402477,115060.0,115040.0,0.08688475]
[1755872608629,0.17402477,115060.0,115030.0,0.28752]
[1755872608630,0.18855185,115060.0,115030.0,0.28752]
[1755872608839,0.12801972,115070.0,115040.0,0.08688475]
[1755872609045,0.00271573,115070.0,115040.0,0.08702975]
[1755872609253,0.00312,115060.0,115040.0,0.000145]
[1755872609469,0.17383746,115050.0,115040.0,0.000145]
[1755872609682,0.1738084,115070.0,115040.0,0.00123554]
[1755872609889,0.18521791,115070.0,115040.0,0.08702975]
[1755872610098,0.18250218,115070.0,115040.0,0.08911991]
[1755872610304,0.18741217,115070.0,115050.0,0.08688475]
[1755872610507,0.17382235,115060.0,115040.0,0.001145]
[1755872610721,0.17383746,115050.0,115040.0,0.08802975]
[1755872610936,0.17383746,115050.0,115040.0,0.001145]
[1755872611141,0.17382235,115060.0,115040.0,0.08802975]
[1755872611356,0.19610253,115070.0,115040.0,0.08912009]
[1755872611563,0.17383746,115050.0,115040.0,0.001145]
[1755872611774,0.17655367,115050.0,115040.0,0.001145]
[1755872612195,0.17382359,115060.0,115040.0,0.001145]
[1755872612409,0.17755367,115050.0,115040.0,0.001145]
[1755872612851,0.001,115050.0,115040.0,0.000145]
[1755872613069,0.002,115050.0,115040.0,0.08702975]
[1755872613484,0.002,115050.0,115040.0,0.09102975]
[1755872613697,0.17583746,115050.0,115040.0,0.09102975]
[1755872613951,0.17583746,115050.0,115040.0,0.004145]
[1755872614161,0.17855367,115050.0,115040.0,0.008145]
[1755872614369,0.18167367,115050.0,115040.0,0.008145]
[1755872614583,0.26534366,115050.0,115040.0,0.008145]
[1755872614817,4.42534366,115050.0,115040.0,0.008145]
[1755872615048,4.42534366,115050.0,115040.0,0.011145]
[1755872615258,0.26022366,115050.0,115040.0,0.007145]
[1755872615491,0.17383746,115050.0,115040.0,0.007145]
[1755872615704,0.79681543,115050.0,115040.0,0.007145]
[1755872615918,4.99307941,115050.0,115040.0,0.007145]
[1755872616128,0.17389792,115010.0,115000.0,0.06692]
[1755872616342,0.17661507,115010.0,115000.0,0.00014506]
[1755872616547,0.00271715,115010.0,115000.0,0.00014506]
[1755872616748,0.18257694,115020.0,115000.0,0.00014506]
[1755872616955,0.17389792,115010.0,115000.0,0.00014506]
[1755872617169,0.88376158,115010.0,115000.0,0.00014506]
[1755872617398,0.26390267,115010.0,115000.0,0.00014506]
[1755872617878,0.88104443,115010.0,115000.0,0.00014506]
[1755872618327,0.17389792,115010.0,115000.0,0.00014506]
[1755872618549,0.17661507,115010.0,115000.0,0.00014506]
[1755872619235,0.26661982,115010.0,115000.0,0.00014506]
[1755872619454,0.26390267,115010.0,115000.0,0.00014506]
[1755872619674,0.26490267,115010.0,115000.0,0.00014506]
[1755872619898,0.09100475,115010.0,115000.0,0.00014506]
[1755872620113,0.00371715,115010.0,115000.0,0.00014506]
[1755872620336,0.17388419,115040.0,115000.0,0.00014506]
[1755872620562,0.18527849,115030.0,115000.0,0.00014506]
[1755872620787,0.26946156,115040.0,115000.0,0.08802981]
[1755872621014,0.26946156,115040.0,115000.0,0.08913981]
[1755872621015,0.17658632,115030.0,115000.0,0.08913981]
[1755872621246,0.17386964,115030.0,115000.0,0.08802981]
[1755872621527,0.17658779,115030.0,115000.0,0.08802981]
[1755872621747,0.012,115010.0,115000.0,0.00114506]
[1755872622193,0.012,115010.0,115000.0,0.00414506]
[1755872622639,0.012,115010.0,115000.0,0.08902981]
[1755872623127,0.012,115010.0,115000.0,0.09002981]
[1755872623341,0.012,115010.0,115000.0,0.59642885]
[1755872623569,0.012,115010.0,115000.0,0.67042885]
[1755872623799,0.006,115010.0,115000.0,0.67042885]
[1755872624035,0.0005,115050.0,115020.0,0.025]
[1755872624256,0.0005,115050.0,115040.0,0.70402651]
[1755872624483,7.569e-05,115090.0,115050.0,0.19882761]
[1755872624704,7.569e-05,115090.0,115070.0,0.08688475]
[1755872625638,0.00022067,115090.0,115070.0,0.08688475]
[1755872625863,0.00022067,115090.0,115080.0,0.28852884]
[1755872626088,0.00022067,115090.0,115080.0,0.37432475]
[1755872626322,0.00022067,115090.0,115060.0,0.49644]
[1755872626551,0.00022067,115090.0,115030.0,0.06688]
[1755872626552,0.24756178,115080.0,115030.0,0.06688]
[1755872626782,0.24447188,115060.0,115030.0,0.15376475]
[1755872627006,0.17383952,115050.0,115030.0,0.08797538]
[1755872627227,0.17655436,115050.0,115030.0,0.08688475]
[1755872627457,0.18817826,115050.0,115020.0,0.209]
[1755872627683,0.001,115010.0,115000.0,0.07788]
[1755872627954,0.001,115010.0,115000.0,0.45212475]
[1755872628414,0.001,115010.0,115000.0,0.07788]
[1755872628638,0.001,115010.0,115000.0,0.16490981]
[1755872628858,0.17658589,115030.0,115000.0,0.15390981]
[1755872629085,0.17386921,115030.0,115010.0,0.00109195]
[1755872629314,0.07064953,115020.0,115010.0,0.00109195]
[1755872629772,0.00271668,115030.0,115000.0,0.08702981]
[1755872630006,0.18596205,115050.0,115010.0,0.08688475]
[1755872630007,0.0005,115050.0,115010.0,0.08688475]
[1755872630236,0.17705398,115050.0,115020.0,0.44316475]
[1755872630466,0.00271644,115040.0,115020.0,0.44316475]
[1755872630716,0.00271644,115040.0,115020.0,0.44116475]
[1755872631172,0.00321621,115050.0,115020.0,0.44116475]
[1755872631402,0.1825137,115060.0,115020.0,0.44116475]